[Event "Late-Titled-Tuesday-Blitz-April-30-2024"]
[Site "Chess.com"]
[Date "2024.04.30"]
[Round "3"]
[White "OparinGrigoriy"]
[Black "CarlosjPineror"]
[Result "0-1"]
[WhiteElo "2979"]
[BlackElo "2709"]
[TimeControl "180+1"]
[EndTime "14:29:51 PDT"]
[Termination "CarlosjPineror won by checkmate"]

1. g3 {[%clk 0:03:00.9]} 1... Nf6 {[%clk 0:02:59.5]} 2. Bg2 {[%clk 0:03:00.9]}
2... g6 {[%clk 0:02:58.3]} 3. c4 {[%clk 0:03:01.3]} 3... Bg7 {[%clk 0:02:58.6]}
4. Nc3 {[%clk 0:03:02]} 4... O-O {[%clk 0:02:59.1]} 5. Nf3 {[%clk 0:03:02.7]}
5... d6 {[%clk 0:02:59.1]} 6. O-O {[%clk 0:03:02.5]} 6... c6 {[%clk 0:02:57.5]}
7. d4 {[%clk 0:03:02.9]} 7... Qa5 {[%clk 0:02:58]} 8. e4 {[%clk 0:03:01.9]} 8...
Qh5 {[%clk 0:02:58.1]} 9. e5 {[%clk 0:02:59.8]} 9... dxe5 {[%clk 0:02:50.6]} 10.
dxe5 {[%clk 0:02:58.8]} 10... Ne8 {[%clk 0:02:44.5]} 11. Bg5 {[%clk 0:02:50.4]}
11... f6 {[%clk 0:02:33.2]} 12. exf6 {[%clk 0:02:50]} 12... exf6 {[%clk
0:02:32.3]} 13. Be3 {[%clk 0:02:47]} 13... Bg4 {[%clk 0:02:29.3]} 14. Qb3 {[%clk
0:02:24.8]} 14... Rf7 {[%clk 0:02:18.7]} 15. Nd4 {[%clk 0:02:21.6]} 15... Na6
{[%clk 0:02:15.4]} 16. Nde2 {[%clk 0:01:58.2]} 16... Bxe2 {[%clk 0:02:12.1]} 17.
Nxe2 {[%clk 0:01:49.4]} 17... Qxe2 {[%clk 0:02:13]} 18. c5 {[%clk 0:01:49.8]}
18... f5 {[%clk 0:02:06.9]} 19. Rab1 {[%clk 0:01:46.8]} 19... Nf6 {[%clk
0:02:04.1]} 20. Rfe1 {[%clk 0:01:45.5]} 20... Qg4 {[%clk 0:02:01.1]} 21. a3
{[%clk 0:01:41]} 21... Bf8 {[%clk 0:01:57.7]} 22. h3 {[%clk 0:01:34.9]} 22...
Qh5 {[%clk 0:01:54.7]} 23. Qc4 {[%clk 0:01:35.5]} 23... Rd8 {[%clk 0:01:50.7]}
24. b4 {[%clk 0:01:30.8]} 24... Nc7 {[%clk 0:01:47.9]} 25. Bd4 {[%clk 0:01:26]}
25... Nfd5 {[%clk 0:01:43.2]} 26. f4 {[%clk 0:01:23.8]} 26... Bg7 {[%clk
0:01:39]} 27. Bxg7 {[%clk 0:01:23.6]} 27... Rxg7 {[%clk 0:01:33.6]} 28. Re5
{[%clk 0:01:23.7]} 28... Rgd7 {[%clk 0:01:33.9]} 29. Rbe1 {[%clk 0:01:23.5]}
29... Qh6 {[%clk 0:01:34.5]} 30. a4 {[%clk 0:01:13.3]} 30... Qg7 {[%clk
0:01:32.1]} 31. b5 {[%clk 0:01:12.1]} 31... Qf7 {[%clk 0:01:29.6]} 32. Qb3
{[%clk 0:01:06.5]} 32... a5 {[%clk 0:01:26.9]} 33. bxc6 {[%clk 0:00:58.5]} 33...
bxc6 {[%clk 0:01:27.8]} 34. Qb7 {[%clk 0:00:58.9]} 34... Nb4 {[%clk 0:01:19]}
35. Bxc6 {[%clk 0:00:43.8]} 35... Nxc6 {[%clk 0:01:19.9]} 36. Qxc6 {[%clk
0:00:44.7]} 36... Rd3 {[%clk 0:01:19.2]} 37. Kh2 {[%clk 0:00:30.1]} 37... Rd2+
{[%clk 0:01:16.2]} 38. R1e2 {[%clk 0:00:29.8]} 38... Qc4 {[%clk 0:00:59.6]} 39.
Qg2 {[%clk 0:00:19.7]} 39... Rxe2 {[%clk 0:00:55.7]} 40. Rxe2 {[%clk 0:00:20.6]}
40... Qxc5 {[%clk 0:00:55.5]} 41. Rc2 {[%clk 0:00:21.3]} 41... Qd6 {[%clk
0:00:55.1]} 42. Qe2 {[%clk 0:00:20.9]} 42... Ne6 {[%clk 0:00:54.9]} 43. Qc4
{[%clk 0:00:20.6]} 43... Kg7 {[%clk 0:00:52.8]} 44. Re2 {[%clk 0:00:19.5]} 44...
Nd4 {[%clk 0:00:51.2]} 45. Re3 {[%clk 0:00:19.6]} 45... Rd7 {[%clk 0:00:49.9]}
46. h4 {[%clk 0:00:19.3]} 46... h5 {[%clk 0:00:49.6]} 47. Qc3 {[%clk 0:00:18.3]}
47... Kh7 {[%clk 0:00:46.9]} 48. Re8 {[%clk 0:00:16.3]} 48... Qd5 {[%clk
0:00:44]} 49. Qc8 {[%clk 0:00:15.8]} 49... Nf3+ {[%clk 0:00:41.1]} 50. Kh3
{[%clk 0:00:16.5]} 50... Ng1+ {[%clk 0:00:39.4]} 51. Kh2 {[%clk 0:00:16.9]}
51... Nf3+ {[%clk 0:00:30.3]} 52. Kh3 {[%clk 0:00:17.2]} 52... Ng5+ {[%clk
0:00:16.5]} 53. Kh2 {[%clk 0:00:15.3]} 53... Qa2+ {[%clk 0:00:16.2]} 54. Kg1
{[%clk 0:00:12.6]} 54... Rd1+ {[%clk 0:00:16.3]} 55. Re1 {[%clk 0:00:12.8]}
55... Rxe1# {[%clk 0:00:16.9]} 0-1

[Event "Late-Titled-Tuesday-Blitz-April-30-2024"]
[Site "Chess.com"]
[Date "2024.04.30"]
[Round "3"]
[White "Njal28"]
[Black "oskariot"]
[Result "1-0"]
[WhiteElo "3093"]
[BlackElo "2736"]
[TimeControl "180+1"]
[EndTime "14:29:53 PDT"]
[Termination "Njal28 won on time"]

1. e4 {[%clk 0:03:00.9]} 1... c5 {[%clk 0:02:59.4]} 2. Nf3 {[%clk 0:03:01]} 2...
e6 {[%clk 0:03:00]} 3. Nc3 {[%clk 0:03:01.3]} 3... d6 {[%clk 0:02:59.8]} 4. g3
{[%clk 0:03:01.6]} 4... Nc6 {[%clk 0:02:58.3]} 5. Bg2 {[%clk 0:03:01.8]} 5...
Nf6 {[%clk 0:02:50.7]} 6. O-O {[%clk 0:03:01.7]} 6... Be7 {[%clk 0:02:50.8]} 7.
d4 {[%clk 0:03:01.4]} 7... cxd4 {[%clk 0:02:51.7]} 8. Nxd4 {[%clk 0:03:01.8]}
8... Bd7 {[%clk 0:02:52.6]} 9. Be3 {[%clk 0:02:54.9]} 9... a6 {[%clk 0:02:51.5]}
10. g4 {[%clk 0:02:49.2]} 10... Nxd4 {[%clk 0:02:38.8]} 11. Qxd4 {[%clk
0:02:35.2]} 11... e5 {[%clk 0:02:30.2]} 12. Qb4 {[%clk 0:02:35.1]} 12... d5
{[%clk 0:02:01.1]} 13. Bc5 {[%clk 0:02:34.9]} 13... d4 {[%clk 0:01:53.2]} 14.
Nd5 {[%clk 0:02:28.7]} 14... Nxd5 {[%clk 0:01:42.2]} 15. exd5 {[%clk 0:02:28.8]}
15... a5 {[%clk 0:01:33.7]} 16. Qa3 {[%clk 0:02:23.7]} 16... Rc8 {[%clk
0:01:16]} 17. d6 {[%clk 0:01:58.3]} 17... Bg5 {[%clk 0:01:15.3]} 18. Bxb7 {[%clk
0:01:31.7]} 18... Rb8 {[%clk 0:01:15.2]} 19. Bg2 {[%clk 0:01:24.2]} 19... O-O
{[%clk 0:01:15.5]} 20. Rae1 {[%clk 0:01:16.7]} 20... Bf4 {[%clk 0:01:15.6]} 21.
h3 {[%clk 0:01:07.8]} 21... f5 {[%clk 0:01:15.9]} 22. Ba7 {[%clk 0:00:51.7]}
22... Rc8 {[%clk 0:01:02.8]} 23. g5 {[%clk 0:00:29]} 23... Qxg5 {[%clk
0:01:00.2]} 24. Kh1 {[%clk 0:00:29.4]} 24... Qh6 {[%clk 0:00:52.1]} 25. c4
{[%clk 0:00:16.4]} 25... dxc3 {[%clk 0:00:36.8]} 26. bxc3 {[%clk 0:00:17.3]}
26... Bc6 {[%clk 0:00:36.6]} 27. c4 {[%clk 0:00:17.6]} 27... e4 {[%clk
0:00:21.8]} 28. c5 {[%clk 0:00:14.6]} 28... e3 {[%clk 0:00:21.9]} 29. Rxe3
{[%clk 0:00:13.3]} 29... Bxe3 {[%clk 0:00:22.3]} 30. Qxe3 {[%clk 0:00:14]} 30...
f4 {[%clk 0:00:22.7]} 31. Qb3+ {[%clk 0:00:13.9]} 31... Kh8 {[%clk 0:00:23.2]}
32. Bxc6 {[%clk 0:00:13]} 32... Rxc6 {[%clk 0:00:23.4]} 33. Qf3 {[%clk
0:00:13.1]} 33... Rcc8 {[%clk 0:00:21.5]} 34. Bb6 {[%clk 0:00:13.5]} 34... Qe6
{[%clk 0:00:18.9]} 35. Rd1 {[%clk 0:00:13.4]} 35... Qd7 {[%clk 0:00:18.8]} 36.
Qg4 {[%clk 0:00:13.6]} 36... Qc6+ {[%clk 0:00:18.9]} 37. Kg1 {[%clk 0:00:14.3]}
37... f3 {[%clk 0:00:18.3]} 38. d7 {[%clk 0:00:14.6]} 38... Rcd8 {[%clk
0:00:18.7]} 39. Bxd8 {[%clk 0:00:14.6]} 39... Rxd8 {[%clk 0:00:19.6]} 40. Qg5
{[%clk 0:00:13.6]} 40... Qc7 {[%clk 0:00:18.7]} 41. c6 {[%clk 0:00:09]} 41... h6
{[%clk 0:00:18.4]} 42. Qe7 {[%clk 0:00:04.8]} 42... Kh7 {[%clk 0:00:12.9]} 43.
Qe4+ {[%clk 0:00:04.8]} 43... Kg8 {[%clk 0:00:13.2]} 44. Qxf3 {[%clk 0:00:05.3]}
44... Qe5 {[%clk 0:00:13.2]} 45. Qd5+ {[%clk 0:00:05.5]} 45... Qxd5 {[%clk
0:00:13.3]} 46. Rxd5 {[%clk 0:00:06.4]} 46... Kf7 {[%clk 0:00:14]} 47. c7 {[%clk
0:00:07]} 47... Rxd7 {[%clk 0:00:14.9]} 48. Rxd7+ {[%clk 0:00:07.2]} 1-0

[Event "Late-Titled-Tuesday-Blitz-April-30-2024"]
[Site "Chess.com"]
[Date "2024.04.30"]
[Round "3"]
[White "SCIM"]
[Black "CMButgood"]
[Result "1-0"]
[WhiteElo "2543"]
[BlackElo "2092"]
[TimeControl "180+1"]
[EndTime "14:29:55 PDT"]
[Termination "SCIM won on time"]

1. e4 {[%clk 0:02:58.9]} 1... c5 {[%clk 0:02:59.8]} 2. Nf3 {[%clk 0:02:57.2]}
2... d6 {[%clk 0:03:00.5]} 3. c3 {[%clk 0:02:55]} 3... Nf6 {[%clk 0:03:00.8]} 4.
h3 {[%clk 0:02:53.7]} 4... Bd7 {[%clk 0:02:58.9]} 5. Bd3 {[%clk 0:02:53.3]} 5...
e5 {[%clk 0:02:57.2]} 6. Bc2 {[%clk 0:02:50.6]} 6... Nc6 {[%clk 0:02:56.5]} 7.
O-O {[%clk 0:02:49.4]} 7... Be7 {[%clk 0:02:53.7]} 8. Re1 {[%clk 0:02:44.7]}
8... Rc8 {[%clk 0:02:51.8]} 9. d3 {[%clk 0:02:42.2]} 9... O-O {[%clk 0:02:51.3]}
10. Nbd2 {[%clk 0:02:37.2]} 10... Re8 {[%clk 0:02:50.7]} 11. Nf1 {[%clk
0:02:35.9]} 11... Bf8 {[%clk 0:02:50.6]} 12. Ng3 {[%clk 0:02:34.7]} 12... g6
{[%clk 0:02:50.8]} 13. Be3 {[%clk 0:02:31]} 13... Bg7 {[%clk 0:02:48.8]} 14. Qd2
{[%clk 0:02:30.9]} 14... b5 {[%clk 0:02:46]} 15. Rad1 {[%clk 0:02:30.8]} 15...
b4 {[%clk 0:02:45.9]} 16. Bb3 {[%clk 0:02:27.4]} 16... bxc3 {[%clk 0:02:41]} 17.
bxc3 {[%clk 0:02:26.8]} 17... Na5 {[%clk 0:02:27]} 18. Bc2 {[%clk 0:01:55.2]}
18... Rb8 {[%clk 0:02:22.7]} 19. Rb1 {[%clk 0:01:55.4]} 19... Qc7 {[%clk
0:02:22.1]} 20. Bh6 {[%clk 0:01:50.8]} 20... Bh8 {[%clk 0:02:17.6]} 21. Nh2
{[%clk 0:01:47.9]} 21... Rxb1 {[%clk 0:02:15.5]} 22. Rxb1 {[%clk 0:01:46.9]}
22... Rb8 {[%clk 0:02:16.3]} 23. Ne2 {[%clk 0:01:39.8]} 23... Rxb1+ {[%clk
0:02:16.2]} 24. Bxb1 {[%clk 0:01:40.3]} 24... Qb6 {[%clk 0:02:16.9]} 25. Qc1
{[%clk 0:01:36.8]} 25... Bg7 {[%clk 0:02:10.6]} 26. Be3 {[%clk 0:01:35.3]} 26...
d5 {[%clk 0:02:04.4]} 27. d4 {[%clk 0:01:21.8]} 27... exd4 {[%clk 0:01:54.3]}
28. cxd4 {[%clk 0:01:18.8]} 28... c4 {[%clk 0:01:42.7]} 29. e5 {[%clk
0:01:15.9]} 29... Ne8 {[%clk 0:01:36]} 30. Nc3 {[%clk 0:01:15.4]} 30... Nc7
{[%clk 0:01:35.1]} 31. Ng4 {[%clk 0:01:13.3]} 31... h5 {[%clk 0:01:23]} 32. Nh6+
{[%clk 0:01:10.2]} 32... Kf8 {[%clk 0:01:23.2]} 33. Qa3+ {[%clk 0:01:05.9]}
33... Ke8 {[%clk 0:01:23.3]} 34. Bc2 {[%clk 0:01:01.3]} 34... Bf8 {[%clk
0:01:22.6]} 35. Qc1 {[%clk 0:00:57.9]} 35... Bxh6 {[%clk 0:01:11.7]} 36. Bxh6
{[%clk 0:00:56.8]} 36... Qxd4 {[%clk 0:01:12.5]} 37. Qa3 {[%clk 0:00:50.4]}
37... Ne6 {[%clk 0:01:03.4]} 38. Qxa5 {[%clk 0:00:46.9]} 38... Qxe5 {[%clk
0:01:00.9]} 39. Nxd5 {[%clk 0:00:43.7]} 39... Bc6 {[%clk 0:00:37.3]} 40. Be4
{[%clk 0:00:28.1]} 40... f5 {[%clk 0:00:18.9]} 41. Nf6+ {[%clk 0:00:25.3]} 41...
Qxf6 {[%clk 0:00:13.3]} 42. Bxc6+ {[%clk 0:00:25.3]} 42... Kf7 {[%clk
0:00:09.8]} 43. Qxa7+ {[%clk 0:00:25.9]} 43... Qe7 {[%clk 0:00:08.8]} 44. Qxe7+
{[%clk 0:00:24.5]} 44... Kxe7 {[%clk 0:00:09.7]} 45. Bd5 {[%clk 0:00:23.7]} 1-0

[Event "Late-Titled-Tuesday-Blitz-April-30-2024"]
[Site "Chess.com"]
[Date "2024.04.30"]
[Round "3"]
[White "mr_gustavo"]
[Black "SpeedofLight0"]
[Result "0-1"]
[WhiteElo "2711"]
[BlackElo "3031"]
[TimeControl "180+1"]
[EndTime "14:29:56 PDT"]
[Termination "SpeedofLight0 won on time"]

1. c4 {[%clk 0:03:00.9]} 1... d6 {[%clk 0:02:59.3]} 2. Nf3 {[%clk 0:02:59.6]}
2... g6 {[%clk 0:02:58.8]} 3. d4 {[%clk 0:02:59.2]} 3... Bg7 {[%clk 0:02:58.9]}
4. g3 {[%clk 0:02:59.9]} 4... Bd7 {[%clk 0:02:58.8]} 5. Bg2 {[%clk 0:03:00.5]}
5... Qc8 {[%clk 0:02:59.3]} 6. h4 {[%clk 0:02:59]} 6... Nf6 {[%clk 0:02:58.6]}
7. Nc3 {[%clk 0:02:58.3]} 7... O-O {[%clk 0:02:58.5]} 8. Bg5 {[%clk 0:02:57.9]}
8... Nc6 {[%clk 0:02:58.3]} 9. Qd2 {[%clk 0:02:54.5]} 9... e5 {[%clk 0:02:54.2]}
10. dxe5 {[%clk 0:02:40]} 10... dxe5 {[%clk 0:02:52.2]} 11. Bxf6 {[%clk
0:02:33.8]} 11... Bxf6 {[%clk 0:02:53.1]} 12. Ne4 {[%clk 0:02:33.2]} 12... Bg7
{[%clk 0:02:52.4]} 13. h5 {[%clk 0:02:33.2]} 13... Bf5 {[%clk 0:02:38.9]} 14.
Nc3 {[%clk 0:02:11.4]} 14... Nb4 {[%clk 0:02:21.4]} 15. h6 {[%clk 0:01:58.5]}
15... Bh8 {[%clk 0:02:18.4]} 16. O-O {[%clk 0:01:57.9]} 16... Rd8 {[%clk
0:02:15.3]} 17. Qg5 {[%clk 0:01:49.6]} 17... f6 {[%clk 0:01:46.8]} 18. Qc1
{[%clk 0:01:48.8]} 18... c6 {[%clk 0:01:40.2]} 19. a3 {[%clk 0:01:43.4]} 19...
Nc2 {[%clk 0:01:39.1]} 20. Ra2 {[%clk 0:00:23.6]} 20... Nd4 {[%clk 0:01:35]} 21.
Nxd4 {[%clk 0:00:23]} 21... exd4 {[%clk 0:01:35.7]} 22. Ne4 {[%clk 0:00:22.9]}
22... Qe6 {[%clk 0:01:33.5]} 23. Qf4 {[%clk 0:00:18.2]} 23... g5 {[%clk
0:01:21.1]} 24. Qf3 {[%clk 0:00:15.4]} 24... Bg4 {[%clk 0:01:17.2]} 25. Qd3
{[%clk 0:00:14]} 25... Re8 {[%clk 0:01:11.5]} 26. b4 {[%clk 0:00:12.2]} 26...
Bf5 {[%clk 0:00:56.6]} 27. f3 {[%clk 0:00:12.7]} 27... Bg6 {[%clk 0:00:55]} 28.
Rd2 {[%clk 0:00:11.4]} 28... Rad8 {[%clk 0:00:52.6]} 29. Nc5 {[%clk 0:00:09.9]}
29... Qe5 {[%clk 0:00:40.4]} 30. e4 {[%clk 0:00:09.9]} 30... b6 {[%clk
0:00:29.9]} 31. f4 {[%clk 0:00:09.3]} 31... gxf4 {[%clk 0:00:25]} 32. gxf4
{[%clk 0:00:10.2]} 32... Qh5 {[%clk 0:00:25.5]} 33. f5 {[%clk 0:00:11.1]} 33...
bxc5 {[%clk 0:00:21.6]} 34. fxg6 {[%clk 0:00:10.4]} 34... hxg6 {[%clk
0:00:21.4]} 35. Bf3 {[%clk 0:00:09.1]} 35... Qe5 {[%clk 0:00:14]} 36. Rg2 {[%clk
0:00:09]} 36... Kh7 {[%clk 0:00:13.8]} 37. bxc5 {[%clk 0:00:09]} 37... Rg8
{[%clk 0:00:12.3]} 38. Rb1 {[%clk 0:00:07.3]} 38... Rd7 {[%clk 0:00:12.2]} 39.
Kh1 {[%clk 0:00:05.5]} 39... Qxc5 {[%clk 0:00:12.2]} 40. Rbg1 {[%clk 0:00:05.7]}
40... Qe5 {[%clk 0:00:11.8]} 41. Bg4 {[%clk 0:00:05.6]} 41... Rdd8 {[%clk
0:00:08.2]} 42. Qf3 {[%clk 0:00:04.2]} 42... Rde8 {[%clk 0:00:07.4]} 43. Bf5
{[%clk 0:00:02.7]} 43... gxf5 {[%clk 0:00:06.5]} 44. Rg7+ {[%clk 0:00:02]} 44...
Bxg7 {[%clk 0:00:04.7]} 45. hxg7 {[%clk 0:00:02.9]} 45... Qxe4 {[%clk
0:00:04.9]} 0-1

[Event "Late-Titled-Tuesday-Blitz-April-30-2024"]
[Site "Chess.com"]
[Date "2024.04.30"]
[Round "3"]
[White "rezamahdavi2008"]
[Black "Rakitic2010"]
[Result "1-0"]
[WhiteElo "2916"]
[BlackElo "2520"]
[TimeControl "180+1"]
[EndTime "14:29:57 PDT"]
[Termination "rezamahdavi2008 won by checkmate"]

1. d4 {[%clk 0:03:00.9]} 1... Nf6 {[%clk 0:02:59.9]} 2. c4 {[%clk 0:03:00.5]}
2... e6 {[%clk 0:02:59.5]} 3. Nf3 {[%clk 0:03:01.3]} 3... c5 {[%clk 0:02:59.6]}
4. d5 {[%clk 0:03:01]} 4... exd5 {[%clk 0:03:00.5]} 5. cxd5 {[%clk 0:03:01.9]}
5... d6 {[%clk 0:03:01]} 6. Nc3 {[%clk 0:03:02.5]} 6... g6 {[%clk 0:03:01.5]} 7.
e4 {[%clk 0:03:03]} 7... Bg7 {[%clk 0:03:01.7]} 8. Nd2 {[%clk 0:03:03.7]} 8...
O-O {[%clk 0:02:58.2]} 9. Be2 {[%clk 0:03:04.1]} 9... Re8 {[%clk 0:02:57.1]} 10.
O-O {[%clk 0:03:04.2]} 10... Nbd7 {[%clk 0:02:56.5]} 11. a4 {[%clk 0:03:04.5]}
11... a6 {[%clk 0:02:56.6]} 12. Nc4 {[%clk 0:03:03.8]} 12... Ne5 {[%clk
0:02:56.4]} 13. Nxe5 {[%clk 0:03:03.9]} 13... Rxe5 {[%clk 0:02:56.4]} 14. Bf4
{[%clk 0:03:04.4]} 14... Re8 {[%clk 0:02:56.2]} 15. Bf3 {[%clk 0:03:02.9]} 15...
Rb8 {[%clk 0:02:48.5]} 16. Qd3 {[%clk 0:02:57.9]} 16... Bg4 {[%clk 0:02:42.4]}
17. h3 {[%clk 0:02:52.8]} 17... Bxf3 {[%clk 0:02:41.7]} 18. Qxf3 {[%clk
0:02:53.7]} 18... Nh5 {[%clk 0:02:39.8]} 19. Bh2 {[%clk 0:02:53.1]} 19... Qe7
{[%clk 0:02:35.5]} 20. Qd3 {[%clk 0:02:50.2]} 20... Be5 {[%clk 0:02:27.4]} 21.
Bxe5 {[%clk 0:02:45.9]} 21... Qxe5 {[%clk 0:02:28.3]} 22. a5 {[%clk 0:02:41.4]}
22... Nf4 {[%clk 0:02:27.6]} 23. Qf3 {[%clk 0:02:39.6]} 23... Re7 {[%clk
0:02:25.2]} 24. Rfe1 {[%clk 0:02:39.2]} 24... Rbe8 {[%clk 0:02:24.5]} 25. Rad1
{[%clk 0:02:38]} 25... Kg7 {[%clk 0:02:23.3]} 26. Re3 {[%clk 0:02:32.6]} 26...
Qg5 {[%clk 0:02:15.5]} 27. Kh2 {[%clk 0:02:24.2]} 27... Nh5 {[%clk 0:02:14]} 28.
Rde1 {[%clk 0:02:21.8]} 28... Qf4+ {[%clk 0:02:08.8]} 29. Qxf4 {[%clk
0:02:21.3]} 29... Nxf4 {[%clk 0:02:09.7]} 30. g3 {[%clk 0:02:22.2]} 30... Nh5
{[%clk 0:02:09.7]} 31. f4 {[%clk 0:02:19.9]} 31... f6 {[%clk 0:02:01.5]} 32. Kg2
{[%clk 0:02:18.4]} 32... Kf7 {[%clk 0:02:00.4]} 33. Kf3 {[%clk 0:02:17.9]} 33...
g5 {[%clk 0:01:57.1]} 34. f5 {[%clk 0:02:12.2]} 34... Ng7 {[%clk 0:01:54.4]} 35.
Na4 {[%clk 0:02:11.9]} 35... h5 {[%clk 0:01:53.4]} 36. Nb6 {[%clk 0:02:09.7]}
36... Rd8 {[%clk 0:01:43.7]} 37. Nc4 {[%clk 0:02:09.2]} 37... Ne8 {[%clk
0:01:41.4]} 38. Rb3 {[%clk 0:02:09.3]} 38... Nc7 {[%clk 0:01:33.2]} 39. Rxb7
{[%clk 0:02:03.8]} 39... Nxd5 {[%clk 0:01:33]} 40. Rxe7+ {[%clk 0:02:01.4]}
40... Nxe7 {[%clk 0:01:32.9]} 41. Rd1 {[%clk 0:01:54.8]} 41... d5 {[%clk
0:01:31.4]} 42. exd5 {[%clk 0:01:41.3]} 42... Rxd5 {[%clk 0:01:30.7]} 43. Rxd5
{[%clk 0:01:40.7]} 43... Nxd5 {[%clk 0:01:30.8]} 44. Ke4 {[%clk 0:01:40.9]}
44... Nc7 {[%clk 0:01:17.9]} 45. Nd6+ {[%clk 0:01:36.8]} 45... Ke7 {[%clk
0:01:17.7]} 46. Nb7 {[%clk 0:01:37.7]} 46... c4 {[%clk 0:01:00.4]} 47. Kd4
{[%clk 0:01:32]} 47... Kd7 {[%clk 0:01:00.3]} 48. Nc5+ {[%clk 0:01:27.1]} 48...
Kc6 {[%clk 0:00:51.6]} 49. Kxc4 {[%clk 0:01:18]} 49... Kd6 {[%clk 0:00:48.6]}
50. b4 {[%clk 0:01:09]} 50... h4 {[%clk 0:00:38.7]} 51. g4 {[%clk 0:01:07.7]}
51... Nd5 {[%clk 0:00:34]} 52. Nxa6 {[%clk 0:01:06.2]} 52... Nf4 {[%clk
0:00:34.1]} 53. Nc5 {[%clk 0:01:06.8]} 53... Nxh3 {[%clk 0:00:33.2]} 54. a6
{[%clk 0:01:06.3]} 54... Nf4 {[%clk 0:00:28.6]} 55. a7 {[%clk 0:01:07.2]} 55...
Nd5 {[%clk 0:00:28.8]} 56. Ne4+ {[%clk 0:01:02.8]} 56... Ke5 {[%clk 0:00:23.1]}
57. Kc5 {[%clk 0:00:58.3]} 57... Nc7 {[%clk 0:00:20]} 58. b5 {[%clk 0:00:54.7]}
58... Kxe4 {[%clk 0:00:16.6]} 59. b6 {[%clk 0:00:55.3]} 59... Na6+ {[%clk
0:00:11]} 60. Kb5 {[%clk 0:00:55.9]} 60... h3 {[%clk 0:00:09.1]} 61. a8=Q+
{[%clk 0:00:54.4]} 61... Kf4 {[%clk 0:00:08.2]} 62. Kxa6 {[%clk 0:00:54.7]}
62... Kxg4 {[%clk 0:00:08]} 63. b7 {[%clk 0:00:55]} 63... h2 {[%clk 0:00:06.6]}
64. b8=Q {[%clk 0:00:55.9]} 64... Kh4 {[%clk 0:00:06.2]} 65. Qxh2+ {[%clk
0:00:55.1]} 65... Kg4 {[%clk 0:00:06.7]} 66. Qe4# {[%clk 0:00:55.7]} 1-0

[Event "Late-Titled-Tuesday-Blitz-April-30-2024"]
[Site "Chess.com"]
[Date "2024.04.30"]
[Round "3"]
[White "simaopdias"]
[Black "el008"]
[Result "1-0"]
[WhiteElo "2327"]
[BlackElo "2537"]
[TimeControl "180+1"]
[EndTime "14:29:58 PDT"]
[Termination "simaopdias won by checkmate"]

1. e4 {[%clk 0:03:00.2]} 1... b6 {[%clk 0:02:57.9]} 2. d4 {[%clk 0:02:59.5]}
2... Bb7 {[%clk 0:02:58.3]} 3. Nc3 {[%clk 0:03:00.4]} 3... e6 {[%clk 0:02:58.8]}
4. a3 {[%clk 0:02:50.9]} 4... Nf6 {[%clk 0:02:58]} 5. Bd3 {[%clk 0:02:50.3]}
5... c5 {[%clk 0:02:57.5]} 6. dxc5 {[%clk 0:02:48.1]} 6... Bxc5 {[%clk
0:02:55.6]} 7. Nf3 {[%clk 0:02:49]} 7... O-O {[%clk 0:02:54.5]} 8. O-O {[%clk
0:02:49]} 8... h6 {[%clk 0:02:51.3]} 9. e5 {[%clk 0:02:43.9]} 9... Nd5 {[%clk
0:02:46.5]} 10. Ne4 {[%clk 0:02:43.9]} 10... Be7 {[%clk 0:02:46.8]} 11. c4
{[%clk 0:02:41.1]} 11... Nc7 {[%clk 0:02:47]} 12. Qe2 {[%clk 0:02:38.9]} 12...
Nc6 {[%clk 0:02:45.8]} 13. Bf4 {[%clk 0:02:36.2]} 13... Ne8 {[%clk 0:02:39.5]}
14. Rfd1 {[%clk 0:02:34.2]} 14... f5 {[%clk 0:02:39.9]} 15. exf6 {[%clk
0:02:29]} 15... Nxf6 {[%clk 0:02:40.3]} 16. Nxf6+ {[%clk 0:02:24.9]} 16... Rxf6
{[%clk 0:02:38.4]} 17. Bg3 {[%clk 0:02:22.3]} 17... a5 {[%clk 0:02:35.8]} 18.
Qe4 {[%clk 0:02:18.3]} 18... Rf5 {[%clk 0:02:21.6]} 19. Qg4 {[%clk 0:02:14.5]}
19... Rf6 {[%clk 0:02:03.3]} 20. Ne5 {[%clk 0:02:01.3]} 20... Bc5 {[%clk
0:01:50.1]} 21. Nxd7 {[%clk 0:01:57.7]} 21... Bd4 {[%clk 0:01:35.9]} 22. Nxf6+
{[%clk 0:01:57.2]} 22... Qxf6 {[%clk 0:01:36.8]} 23. Re1 {[%clk 0:01:41.8]}
23... Bxb2 {[%clk 0:01:33.3]} 24. Rad1 {[%clk 0:01:38]} 24... Re8 {[%clk
0:01:33.5]} 25. Bh4 {[%clk 0:01:31.7]} 25... g5 {[%clk 0:01:32.9]} 26. Bg3
{[%clk 0:01:29.1]} 26... Nd4 {[%clk 0:01:27.9]} 27. h4 {[%clk 0:01:25.7]} 27...
e5 {[%clk 0:00:26.3]} 28. hxg5 {[%clk 0:01:22.8]} 28... hxg5 {[%clk 0:00:27.2]}
29. a4 {[%clk 0:01:11.8]} 29... Bc8 {[%clk 0:00:25]} 30. Qh5 {[%clk 0:01:11.5]}
30... Re7 {[%clk 0:00:25.2]} 31. f4 {[%clk 0:00:46.8]} 31... exf4 {[%clk
0:00:21.3]} 32. Rxe7 {[%clk 0:00:42.8]} 32... Qxe7 {[%clk 0:00:22.2]} 33. Re1
{[%clk 0:00:43.2]} 33... Be6 {[%clk 0:00:13.2]} 34. Qg6+ {[%clk 0:00:38]} 34...
Kf8 {[%clk 0:00:13.1]} 35. Bf2 {[%clk 0:00:37]} 35... Qf7 {[%clk 0:00:06.5]} 36.
Qh6+ {[%clk 0:00:36.9]} 36... Qg7 {[%clk 0:00:05.7]} 37. Qh5 {[%clk 0:00:35.6]}
37... Bf7 {[%clk 0:00:04.9]} 38. Qg4 {[%clk 0:00:34]} 38... Kg8 {[%clk
0:00:04.2]} 39. Qd7 {[%clk 0:00:32.8]} 39... Nb3 {[%clk 0:00:02.5]} 40. Re7
{[%clk 0:00:22.7]} 40... Bd4 {[%clk 0:00:02.4]} 41. Bh7+ {[%clk 0:00:18.4]}
41... Qxh7 {[%clk 0:00:01.8]} 42. Bxd4 {[%clk 0:00:18.3]} 42... Qb1+ {[%clk
0:00:02]} 43. Kh2 {[%clk 0:00:18.3]} 43... Qh7+ {[%clk 0:00:02.2]} 44. Kg1
{[%clk 0:00:18.5]} 44... Qb1+ {[%clk 0:00:02.2]} 45. Kf2 {[%clk 0:00:18]} 45...
Qc2+ {[%clk 0:00:02]} 46. Re2 {[%clk 0:00:18.4]} 46... Qg6 {[%clk 0:00:01.6]}
47. Qd8+ {[%clk 0:00:18.3]} 47... Be8 {[%clk 0:00:01.4]} 48. Qe7 {[%clk
0:00:17.4]} 48... Qf7 {[%clk 0:00:00.9]} 49. Qe5 {[%clk 0:00:17.5]} 49... Qg6
{[%clk 0:00:01.1]} 50. Qh8+ {[%clk 0:00:17.9]} 50... Kf7 {[%clk 0:00:01.7]} 51.
Qxe8# {[%clk 0:00:18]} 1-0